[Event "Chinese Championship-B Men 2024"]
[Site "Liaocheng"]
[Date "2024.04.26"]
[Round "11.8"]
[White "Pan, Shi Tian Yu"]
[Black "Yu, Chaojie"]
[Result "1/2-1/2"]
[ECO "D30"]
[WhiteElo "2166"]
[BlackElo "2047"]
[Annotator "TA"]
[PlyCount "64"]
[EventDate "2024.04.24"]
[EventType "swiss"]
[EventCountry "CHN"]
[SourceTitle "playchess.com"]
[Source "ChessBase"]
[SourceQuality "1"]
[TimeControl "5400+30"]

{[%evp 14,64,20,12,30,0,0,12,0,0,0,0,8,0,0,0,13,15,10,0,20,16,15,17,18,15,27,0,0,0,0,0,0,0,0,0,-10,-13,-8,-314,-315,-303,-300,-275,-279,-29990,-29991,-29991,0,-14,0,-29991,0]} 1. d4 {[%emt 0:00:02]} d5 {[%emt 0:00:33]} 2. Nf3 {[%emt 0:00:06]} Nf6 {[%emt 0:00:26]} 3. e3 {[%emt 0:00:14]} c6 {[%emt 0:01:19]} 4. c4 {[%emt 0:00:30]} e6 {[%emt 0:02:09]} 5. Qc2 {[%emt 0:02:20]} Nbd7 {[%emt 0:02:44]} 6. Nbd2 {[%emt 0:01:20]} Bd6 {[%emt 0:04:04]} 7. Be2 {[%emt 0:01:33]} O-O {[%emt 0:01:03]} 8. O-O {[%emt 0:00:07]} e5 {[%emt 0:06:24]} 9. dxe5 {[%emt 0:00:11]} Nxe5 {[%emt 0:00:11]} 10. Nxe5 {[%emt 0:00:07]} Bxe5 {[%emt 0:00:03] The position is equal.} 11. Nf3 {[%emt 0:00:06]} Bc7 {[%emt 0:02:01]} 12. b3 {[%emt 0:00:08]} dxc4 {[%emt 0:01:05]} 13. Bxc4 {[%emt 0:00:53]} Bg4 {[%emt 0:05:54]} 14. Ba3 {[%emt 0:03:51]} Bxf3 {[%emt 0:02:51]} 15. gxf3 {[%emt 0:01:57]} (15. Bxf8 $2 {is the wrong capture.} Be4 16. Qc3 Kxf8 $19 (16... Qxf8 $2 17. f3 $19)) 15... Re8 {[%emt 0:03:56][%cal Bf8e8,Be8e5,Be5h5][%mdl 32]} 16. Rfd1 {[%emt 0:04:08] Prevents Qd7.} Qc8 {[%emt 0:01:32]} 17. Kg2 {[%emt 0:01:00] Against Qh3+} Re5 {[%emt 0:03:31]} 18. h4 {[%emt 0:00:47] Wards off Rg5+} Rh5 {[%emt 0:27:50]} 19. Rh1 {[%emt 0:01:29]} Qe8 {[%emt 0:02:18]} 20. Rag1 {[%emt 0:03:50]} Rd8 {[%emt 0:01:34]} 21. Kf1 {[%emt 0:02:45]} b5 {[%emt 0:05:23]} 22. Be2 {[%emt 0:02:56]} Rhd5 {[%emt 0:00:25] Hoping for ...Rd2.} 23. Bb2 {[%emt 0:02:23]} Be5 {[%emt 0:01:13]} 24. Bc1 {[%emt 0:00:32] Inhibits Rd2.} Qe7 {[%emt 0:08:10]} 25. f4 {[%emt 0:01:36]} Rc5 {[%emt 0:01:16]} 26. Ba3 $2 {[%emt 0:01:42][%mdl 8192]} (26. Qb1 $1 $11 {and White has nothing to worry.} Bc3 27. Bf3) 26... Rxc2 $19 {[%emt 0:00:47]} 27. Bxe7 {[%emt 0:00:08]} Rdd2 $1 {[%emt 0:00:31]} 28. fxe5 {[%emt 0:00:43][%cal Og1g7] Rxg7+! would kill now.} Rxe2 {[%emt 0:00:18]} ({But not} 28... Nd5 29. Bf6 Rxe2 30. Rxg7+ Kf8 31. Rh3 Rxf2+ 32. Kg1 $19) 29. exf6 $2 {[%emt 1:07:36]} (29. Rh2 $19 Nd5 30. Bg5) 29... Rxf2+ {[%emt 0:00:10]} 30. Ke1 {[%emt 0:00:00] [#]} Rfe2+ $2 {[%emt 0:00:37]} (30... Rce2+ $1 31. Kd1 Rxa2 32. Ba3 Rxa3 33. Ke1 Rb2 (33... Rxf6 $2 34. Ke2 $19) 34. Rxg7+ Kf8 35. Rg8+ Kxg8 36. Rg1+ Kh8 37. Rg8+ Kxg8 38. h5 Ra1#) 31. Kf1 {[%emt 0:00:00]} Rf2+ $2 {[%emt 0:00:29][%mdl 8192]} (31... g6 $11 32. Rg5 Rf2+ 33. Ke1 Rxa2) 32. Ke1 {[%emt 0:00:00] [#]} Rfe2+ $2 {[%emt 0:00:03] Weighted Error Value: White=0.42/Black=0.15 (very precise) .  Loses game:     	White=2     	---        Missed win:     	---       	Black=1      Mistake:       	White=1     	---        Inaccurate:     	White=1     	---        OK:         	White=10    	Black=10     Best:        	---       	Black=3      Strong:       	---       	Black=1} (32... Rce2+ $1 {mates} 33. Kd1 Rxa2 34. Ba3 Rxa3 35. Ke1 Rb2 (35... Rxf6 $2 36. Ke2 $19) 36. Rxg7+ Kh8 37. Rg8+ Kxg8 38. Rg1+ Kh8 39. Rg8+ Kxg8 40. h5 Ra1#) 1/2-1/2

[Event "Chinese Championship-B Men 2024"]
[Site "Liaocheng"]
[Date "2024.04.26"]
[Round "11.9"]
[White "Xia, Jinnan"]
[Black "Zhang, Yinzhe"]
[Result "1-0"]
[ECO "E17"]
[WhiteElo "1819"]
[BlackElo "1927"]
[Annotator "TA"]
[PlyCount "125"]
[EventDate "2024.04.24"]
[EventType "swiss"]
[EventCountry "CHN"]
[SourceTitle "playchess.com"]
[Source "ChessBase"]
[SourceQuality "1"]
[TimeControl "5400+30"]

{[%evp 12,125,15,14,21,21,23,0,38,37,47,28,28,30,42,26,33,17,16,0,16,0,0,0,7,6,35,0,21,22,28,0,59,40,64,49,102,38,69,70,83,24,41,42,189,185,178,199,173,169,329,330,339,361,387,199,256,240,207,99,282,275,349,347,363,266,275,271,243,266,267,259,261,264,260,220,234,175,181,178,219,214,210,160,166,171,561,314,417,426,642,660,668,668,687,671,668,665,683,671,778,772,782,761,1148,656,625,626,29977,29978,29978,29979,29978,29979,29992,29957]} 1. d4 {[%emt 0:00:01]} Nf6 {[%emt 0:00:03]} 2. c4 {[%emt 0:00:01]} e6 {[%emt 0:00:04]} 3. Nf3 {[%emt 0:00:02]} b6 {[%emt 0:00:04]} 4. g3 {[%emt 0:00:02]} Bb7 {[%emt 0:00:03]} 5. Bg2 {[%emt 0:00:01]} Be7 {[%emt 0:00:06]} 6. O-O {[%emt 0:00:03]} O-O {[%emt 0:00:08]} 7. Re1 {[%emt 0:00:13]} a5 {[%emt 0:05:43]} 8. Nc3 {[%emt 0:00:26]} Ne4 {[%emt 0:00:07]} 9. Qd3 {[%emt 0:07:16]} Nxc3 {[%emt 0:00:31] The position is equal.} 10. bxc3 {[%emt 0:00:24]} Ra7 {[%emt 0:10:55]} 11. e4 {[%emt 0:03:27]} d6 {[%emt 0:03:37]} 12. Nd2 {[%emt 0:02:41]} Re8 {[%emt 0:02:46]} 13. f4 {[%emt 0:03:16]} Nd7 {[%emt 0:11:06]} 14. Bb2 {[%emt 0:03:21]} a4 {[%emt 0:04:40]} 15. a3 {[%emt 0:00:40]} Ra5 {[%emt 0:00:36]} 16. Qc2 {[%emt 0:03:14]} Qa8 {[%emt 0:00:31]} 17. Re2 {[%emt 0:02:54]} Qa7 {[%emt 0:02:04]} 18. Rf1 {[%emt 0:04:29]} Bf8 {[%emt 0:02:32]} 19. Kh1 {[%emt 0:08:55]} Ba8 {[%emt 0:01:05]} 20. Ref2 {[%emt 0:02:53]} Qa6 {[%emt 0:09:13]} 21. g4 {[%emt 0:11:07]} Rb8 {[%emt 0:02:37]} ({Black should play} 21... f5 $11) 22. Bc1 {[%emt 0:01:49]} (22. g5 {is interesting.} b5 23. f5 bxc4 24. fxe6 fxe6 25. Rf7) 22... Re8 {[%emt 0:05:30][%cal Of7f5]} 23. g5 {[%emt 0:02:40]} Bb7 {[%emt 0:03:14]} (23... f5 $14) 24. Qd1 {[%emt 0:03:57]} (24. Kg1 $16) 24... Qa8 {[%emt 0:03:07]} 25. Kg1 {[%emt 0:12:41]} f6 {[%emt 0:02:17]} 26. gxf6 {[%emt 0:00:50]} (26. h4 $16) 26... Nxf6 $11 {[%emt 0:00:22]} 27. Qe2 {[%emt 0:04:21] And now e5 would win.} Qd8 {[%emt 0:05:13]} (27... e5 $14) 28. e5 $18 {[%emt 0:01:55]} Bxg2 {[%emt 0:00:08]} 29. Rxg2 {[%emt 0:00:01]} Nd7 {[%emt 0:00:26]} 30. Kh1 {[%emt 0:02:26]} c5 $2 {[%emt 0:03:51]} (30... Re7 {was called for.} 31. Ne4 Qe8) 31. Rfg1 {[%emt 0:01:04]} cxd4 {[%emt 0:01:45]} 32. cxd4 {[%emt 0:00:02]} d5 {[%emt 0:00:43]} 33. Qh5 {[%emt 0:01:13]} (33. Nf3 $142) 33... Qe7 {[%emt 0:01:24]} (33... Re7 $142 34. Bb2 Nb8) 34. f5 {[%emt 0:06:09]} exf5 {[%emt 0:03:58]} 35. Qxf5 {[%emt 0:02:13]} (35. Nf3 $18 {aiming for Bh6.} Qf7 36. Qxf7+ Kxf7 37. Bd2) 35... g6 $2 {[%emt 0:00:42]} (35... Qe6 $16 36. Qh5 Qf7 37. Qxf7+ Kxf7) 36. cxd5 {[%emt 0:01:00]} Rxd5 {[%emt 0:01:17] [#]} 37. Qe4 {[%emt 0:00:23]} Qf7 {[%emt 0:02:56][%cal Od7c5] [#]} 38. e6 $1 {[%emt 0:02:57][%mdl 512]} Qf5 {[%emt 0:04:36]} 39. Qxf5 {[%emt 0:01:18]} (39. exd7 $2 Rxe4 40. Rg5 Qh3 (40... Qxg5 $2 41. Rxg5 Re1+ 42. Rg1 $19) 41. Nxe4 Qf3+ (41... Rxd4 $2 42. Nf6+ Kf7 43. R5g2 $19) 42. R1g2 Qxe4 $19 (42... Rxd7 $2 43. Nd2 $19)) 39... Rxf5 {[%emt 0:00:01]} 40. exd7 {[%emt 0:00:06]} Rd8 {[%emt 0:00:02]} 41. Nc4 {[%emt 0:01:07]} Rxd7 {[%emt 0:00:33]} 42. Bb2 {[%emt 0:01:13]} b5 {[%emt 0:00:11]} 43. Ne3 {[%emt 0:00:34]} Rf4 {[%emt 0:03:01]} 44. Rg4 {[%emt 0:03:00]} Rf3 {[%emt 0:00:47]} 45. R4g3 {[%emt 0:00:26]} Rf4 {[%emt 0:01:51]} 46. Rc1 {[%emt 0:00:59]} b4 {[%emt 0:01:49]} 47. axb4 {[%emt 0:00:38]} Bxb4 {[%emt 0:00:02]} 48. Rc8+ {[%emt 0:01:23]} Bf8 $2 {[%emt 0:00:34]} (48... Rf8 {is more resistant.} 49. Ng4 Rxc8 50. Nf6+ Kg7 51. Nxd7 Re8) 49. Nc4 {[%emt 0:01:30]} Rf2 {[%emt 0:02:20]} 50. Kg1 {[%emt 0:00:39]} Rdf7 {[%emt 0:00:30]} (50... Rf5 $142 51. Ne5 Ra7) 51. d5 {[%emt 0:00:47][%cal Bd4d5,Bd5d6][%mdl 32]} Rf1+ {[%emt 0:00:21]} 52. Kg2 {[%emt 0:00:02]} R1f2+ {[%emt 0:01:56]} 53. Kh3 {[%emt 0:00:32]} R7f5 {[%emt 0:01:02]} 54. d6 {[%emt 0:00:43] Threatens to win with d7.} Rh5+ {[%emt 0:00:07]} 55. Kg4 {[%emt 0:00:04] d7 would now be deadly.} Rhxh2 {[%emt 0:00:14]} 56. Rf3 {[%emt 0:01:48][%csl Gf3][%cal Rc8f8]} (56. d7 h5+ 57. Kg5 Kh7 58. Rxf8 (58. d8=B $2 Bh6#) 58... Rxf8 $18) 56... h5+ {[%emt 0:01:12]} 57. Kf4 {[%emt 0:00:28] Threatening mate with d7.} g5+ {[%emt 0:01:52]} 58. Ke3 {[%emt 0:00:04]} (58. Kxg5 $2 Rxf3 59. Rc5 Rf1 $19) 58... Rxf3+ {[%emt 0:00:04]} 59. Kxf3 {[%emt 0:00:01] White wants to mate with d7.} g4+ {[%emt 0:00:41]} 60. Ke4 {[%emt 0:00:37] White mates.} Kf7 {[%emt 0:00:19]} 61. Ne5+ {[%emt 0:00:50]} Ke6 {[%emt 0:00:59]} 62. d7 {[%emt 0:00:09]} Rd2 {[%emt 0:00:31]} 63. Bd4 {[%emt 0:00:49] Weighted Error Value: White=0.29 (precise) /Black=0.47.  Loses game:     	---       	Black=1      Mistake:       	White=4     	Black=7      Inaccurate:     	White=3     	Black=4      OK:         	White=14    	Black=8      Best:        	White=2     	Black=1} ({And not} 63. d8=B Re2+ 64. Kd4 Bg7 $11 (64... Rxb2 $2 {loses.} 65. Rc6+ Bd6 66. Nc4 $18)) 1-0

[Event "Chinese Championship-B Men 2024"]
[Site "Liaocheng"]
[Date "2024.04.26"]
[Round "11.10"]
[White "Liu, Meng"]
[Black "Jin, Yueheng"]
[Result "1/2-1/2"]
[ECO "D12"]
[WhiteElo "1877"]
[BlackElo "2407"]
[Annotator "TA"]
[PlyCount "61"]
[EventDate "2024.04.24"]
[EventType "swiss"]
[EventCountry "CHN"]
[SourceTitle "playchess.com"]
[Source "ChessBase"]
[SourceQuality "1"]
[TimeControl "5400+30"]

{[%evp 17,61,23,20,22,41,18,49,47,49,46,27,35,56,50,95,50,53,31,97,104,104,102,94,83,104,72,135,53,53,53,53,53,60,54,64,61,57,62,59,48,67,59,64,34,55,62]} 1. d4 {[%emt 0:01:27]} Nf6 {[%emt 0:00:13]} 2. Nf3 {[%emt 0:00:06]} d5 {[%emt 0:00:08]} 3. e3 {[%emt 0:00:04]} Bf5 {[%emt 0:01:22]} 4. c4 {[%emt 0:00:14]} e6 {[%emt 0:00:55]} 5. Nc3 {[%emt 0:00:05]} c6 {[%emt 0:01:50]} 6. Nh4 {[%emt 0:00:05]} Bg4 {[%emt 0:00:58]} 7. Qb3 {[%emt 0:00:34]} Qb6 {[%emt 0:01:36]} 8. h3 {[%emt 0:00:07]} Bh5 {[%emt 0:03:01]} 9. g4 {[%emt 0:00:13][%cal Bg2g4,Bg4g5][%mdl 32]} Bg6 {[%emt 0:00:01]} 10. Nxg6 {[%emt 0:01:04]} hxg6 {[%emt 0:00:06]} 11. g5 {[%emt 0:01:44]} Nfd7 {[%emt 0:02:21]} 12. Bd2 {[%emt 0:04:43]} Na6 {[%emt 0:03:48]} 13. c5 {[%emt 0:11:44]} Qxb3 {[%emt 0:00:05]} 14. axb3 {[%emt 0:00:03]} Nc7 {[%emt 0:00:11]} 15. f4 {[%emt 0:03:40]} a6 {[%emt 0:01:33][%cal Oe6e5]} 16. Kf2 {[%emt 0:04:15]} Be7 {[%emt 0:00:10]} 17. Be2 {[%emt 0:08:37]} f6 {[%emt 0:03:33]} (17... e5 $1 $14) 18. h4 $16 {[%emt 0:01:32]} Kf7 {[%emt 1:17:39]} 19. Rag1 {[%emt 0:01:19]} Rag8 {[%emt 0:00:30]} 20. Bd3 {[%emt 0:58:54]} Nf8 {[%emt 0:00:30]} 21. Ne2 {[%emt 0:00:00] White has more active pieces. The black rooks are passive.} e5 22. b4 {[%emt 0:01:00]} ({Better is} 22. fxe5 $16 fxg5 23. hxg5) 22... e4 $14 {[%emt 0:00:00] White is slightly better.} 23. Bc2 {[%emt 0:00:00][%cal Bd3c2,Bc2d1,Bd1e2][%mdl 32]} Rh7 {[%emt 0:00:00]} 24. Kg2 {[%emt 0:00:00]} Rgh8 {[%emt 0:00:00]} 25. Be1 {[%emt 0:00:00]} Bd8 {[%emt 0:00:00]} 26. Bg3 {[%emt 0:00:00]} Ke8 {[%emt 0:00:00]} 27. Nc3 {[%emt 0:00:00]} Nfe6 {[%emt 0:00:00]} 28. Bd1 {[%emt 0:00:00]} f5 {[%emt 0:00:00]} 29. Be2 {[%emt 0:00:00]} Kd7 {[%emt 0:00:00]} 30. Rh2 {[%emt 0:00:00]} Nf8 {[%emt 0:00:00]} 31. Ra1 {[%emt 0:00:00] Weighted Error Value: White=0.13 (very precise) /Black=0.14 (very precise) .  Mistake:       	White=1     	Black=2      Inaccurate:     	White=3     	Black=2      OK:         	White=7     	Black=6      Best:        	White=1     	---} 1/2-1/2

[Event "Chinese Championship-B Men 2024"]
[Site "Liaocheng"]
[Date "2024.04.26"]
[Round "11.11"]
[White "Xu, Ziyuan"]
[Black "Jiang, Qinyu"]
[Result "0-1"]
[ECO "B23"]
[WhiteElo "1872"]
[BlackElo "2319"]
[Annotator "TA"]
[PlyCount "106"]
[EventDate "2024.04.24"]
[EventType "swiss"]
[EventCountry "CHN"]
[SourceTitle "playchess.com"]
[Source "ChessBase"]
[SourceQuality "1"]
[TimeControl "5400+30"]

{[%evp 9,106,0,17,18,15,2,4,10,16,12,18,0,0,0,0,0,0,9,20,-24,-12,-42,-32,-62,-43,-45,-31,-64,-69,-52,33,15,21,13,47,-108,-41,-33,-48,-42,0,-212,-51,-56,-60,-50,-58,-108,-81,-409,-481,-487,-489,-477,-494,-492,-467,-480,-473,-457,-467,-506,-475,-533,-419,-630,-629,-1256,-1256,-1283,-686,-1276,-1276,-1201,-1172,-1129,-1047,-1587,-1223,-7636,-6893,-7064,-6427,-6661,-6171,-12810,-12318,-4991,-4734,-29961,-29961,-29964,-1782,-29968,-5832,-29970,-29971,-5808,-2060]} 1. e4 {[%emt 0:00:02]} c5 {[%emt 0:00:41]} 2. Nc3 {[%emt 0:00:11]} Nc6 {[%emt 0:00:06]} 3. Bb5 {[%emt 0:00:18]} Nd4 {[%emt 0:00:02]} 4. a4 {[%emt 0:00:21]} a6 {[%emt 0:02:48]} 5. Bc4 {[%emt 0:00:11]} g6 {[%emt 0:01:28]} 6. d3 {[%emt 0:00:31]} Bg7 {[%emt 0:00:18]} 7. Nf3 {[%emt 0:00:20]} e6 {[%emt 0:01:28]} 8. Nxd4 {[%emt 0:00:11] The position is equal.} cxd4 {[%emt 0:00:11]} 9. Ne2 {[%emt 0:00:03][%cal Bc3e2,Be2g3,Bg3f5][%mdl 32]} Ne7 {[%emt 0:00:13]} 10. h4 {[%emt 0:01:17][%cal Bh2h4,Bh4h5,Bh5h6][%mdl 32]} d5 {[%emt 0:02:11]} 11. Bb3 {[%emt 0:00:23]} dxe4 {[%emt 0:20:06]} 12. dxe4 {[%emt 0:02:07]} Nc6 {[%emt 0:00:29]} 13. h5 {[%emt 0:01:46]} e5 {[%emt 0:01:13]} 14. Ng3 {[%emt 0:08:56]} Qe7 {[%emt 0:01:21]} 15. O-O {[%emt 0:06:25]} O-O {[%emt 0:07:43]} 16. h6 {[%emt 0:42:13]} Bh8 {[%emt 0:07:33]} 17. Ra3 {[%emt 0:08:03]} Be6 {[%emt 0:04:09]} 18. Nf5 {[%emt 0:00:49]} Qd7 {[%emt 0:08:27]} (18... gxf5 19. Bxe6 Qxe6 (19... fxe6 $2 20. Rg3+ $18) 20. exf5 (20. Rg3+ Bg7 $18) 20... Qxf5 21. Rf3 $18 (21. Rg3+ Bg7 $16)) (18... Bxf5 $6 19. exf5 Qd7 20. fxg6 hxg6 21. h7+ Kxh7 22. Ba2 $14) 19. Bxe6 {[%emt 0:02:51]} fxe6 {[%emt 0:00:07]} (19... Qxe6 $15 20. Rg3 Bf6) 20. Nh4 {[%emt 0:02:04]} Bf6 {[%emt 0:00:43]} 21. Qg4 {[%emt 0:00:51]} Nb4 {[%emt 0:01:49]} 22. f4 $2 {[%emt 0:21:37]} (22. Bg5 $14 {keeps the upper hand.}) 22... Bxh4 {[%emt 0:04:24]} (22... Nxc2 $17 23. Rd3 Nb4 (23... Qxa4 $2 24. Nxg6 hxg6 25. fxe5 $18)) 23. Qxh4 $15 {[%emt 0:00:00]} Nxc2 {[%emt 0:00:01]} 24. Raf3 {[%emt 0:00:00]} d3 {[#] Threatens to win with ...d2.} 25. Bd2 $2 {[%emt 0:01:30]} (25. Rd1 $11 {and White is okay.} d2 26. Bxd2 (26. Rxd2 Nd4 $11)) 25... Qd4+ $2 {[%emt 0:35:29]} (25... Qxa4 26. fxe5 (26. Rxd3 Nd4 $11) 26... Qd7 (26... Rxf3 $2 27. Rxf3 Qd4+ 28. Kh1 $18) 27. Rf6 $14) ({Black should try} 25... Nd4 $19 26. R3f2 exf4 (26... Qxa4 $2 27. fxe5 Nf5 28. Qf4 $18) 27. Bxf4 Ne2+ (27... Qxa4 $2 28. Bd6 $18) 28. Kh2 Nxf4 (28... Qxa4 29. Bb8) 29. Rxf4 Qd6 (29... Qxa4 30. Qe7)) 26. Kh1 {Qe7 would now be deadly.} Qxe4 {[%emt 0:00:00]} 27. Qe7 {[%emt 0:01:00]} Rf7 28. Qxe6 {[%emt 0:00:30]} ({White should play} 28. Qd6 $15) 28... Nd4 $1 $17 {[%emt 0:01:30]} (28... Qxa4 29. fxe5 (29. Qxe5 Re8 $11) 29... Qh4+ 30. Kg1 Qe7 31. Qxf7+ Qxf7 32. Rxf7 Nd4 33. Rg7+ (33. Rxb7 g5 $18) 33... Kh8 34. e6 (34. Rxb7 Re8 35. Rff7 Ne6 36. Rfe7 Rc8 37. Rxe6 g5 38. Ree7 Kg8 39. Rg7+ Kh8 40. Rxh7+ Kg8 41. Rbg7+ Kf8 42. Rh8#)) 29. Qxe5 {[%emt 0:00:00][%mdl 8192] This move loses the game for White.} (29. Qc4 $17 {nothing else works.}) 29... Qxe5 $19 {[%emt 0:00:00]} 30. fxe5 {[%emt 0:00:00]} Nxf3 {[%emt 0:00:00]} 31. gxf3 $17 {[%emt 0:00:00][%mdl 4096] Endgame. KRR-KRB} Rc7 {[%emt 0:00:00]} 32. Bc3 {[%emt 0:00:00]} Kf7 {[%emt 0:00:00]} 33. Rd1 {[%emt 0:00:00]} Rd7 {[%emt 0:00:00]} 34. Kg2 {[%emt 0:00:00]} Rc8 {[%emt 0:00:00]} 35. Kf2 {[%emt 0:00:00]} Rc4 {[%emt 0:00:00]} 36. a5 {[%emt 0:00:00]} Rh4 {[%emt 0:00:00]} 37. Ke3 {[%emt 0:00:47]} (37. Bd2 $142) 37... Ke6 {[%emt 0:00:00]} 38. Rxd3 {[%emt 0:01:11]} Rxd3+ {[%emt 0:00:00]} 39. Kxd3 $19 {[%emt 0:00:02] KR-KB} Kd5 {[%emt 0:00:00]} 40. Ke3 {[%emt 0:02:17]} Rxh6 {[%emt 0:00:00]} 41. Kf4 {[%emt 0:00:08]} Rh5 {[%emt 0:00:00]} 42. Kg4 {[%emt 0:00:07]} Rf5 {[%emt 0:00:00]} 43. f4 {[%emt 0:00:07]} Ke6 {[%emt 0:00:00] [#] And now ...h5+ would win.} 44. Bd2 {[%emt 0:00:10]} Rh5 {[%emt 0:00:00]} 45. Bc3 {[%emt 0:00:12]} h6 {[%emt 0:00:00] ...Rh1 is the strong threat.} 46. Bb4 {[%emt 0:00:32]} Rh1 {[%emt 0:00:00] White must now prevent ...h5+.} 47. Bf8 {[%emt 0:00:34]} h5+ {[%emt 0:00:00]} 48. Kf3 {[%emt 0:00:29]} Kf5 {[%emt 0:00:00]} 49. Kg2 {[%emt 0:01:17] Prevents Rf1.} Rb1 {[%emt 0:00:00]} 50. b4 {[%emt 0:00:44]} Rb3 {[%emt 0:00:00]} (50... Rc1 $142 51. Bh6 Rc4 52. Bg5 Rxb4 53. Kf3 Re4 54. Bh6 Ra4 55. Bg5 Rxa5 56. Ke3 Ra1 57. Be7 a5 58. Bc5 a4 59. Bb4 a3 60. Kd4 a2 (60... Kxf4 $2 61. Kd5 $19) 61. Bc3 Rc1 62. Bb2 Rb1 (62... a1=B 63. Bxa1 Rxa1 64. Kd3 h4 65. Kd4 h3 66. e6 Kxe6 67. Ke3 h2 68. f5+ Kxf5 69. Kd4 h1=Q 70. Kc4 Qc1+ 71. Kd3 Ra3+ 72. Kd4 b5 73. Kd5 Rd3#) 63. Kc3 h4 (63... a1=B 64. Bxa1 Rxa1 65. Kd2 h4 66. Ke3 h3 67. e6 h2 68. e7 h1=Q 69. e8=R Qc1+ 70. Kd3 Qa3+ 71. Kd4 Rd1+ 72. Kc4 Rc1+ 73. Kb5 Qb3+ 74. Ka5 Rc5#) 64. e6 Kxe6 (64... a1=B 65. e7 Bxb2+ 66. Kd2) 65. Kc2 h3 (65... a1=B 66. Kxb1 Bxb2 67. Kxb2 h3 68. Kc3 h2 69. Kd3 h1=Q 70. f5+ gxf5 71. Ke2 Qe4+ 72. Kd2 f4 73. Kc3 f3 74. Kd2 f2 75. Kc3 f1=Q 76. Kb2 Qfb1+ 77. Kc3 Qed3#) 66. Bh8 h2 (66... a1=B 67. Kxb1 Bxh8 68. Kc2 h2 69. Kd2 h1=Q 70. Kd3 Qf1+ 71. Kc2 Qe2+ 72. Kb3 Kd5 73. Kb4 Qb2+ 74. Ka4 Kc5 75. Ka5 Qb5#) 67. Kd3 h1=Q (67... h1=B 68. Bg7 b5 69. Kc2 b4 70. Kd3 b3 71. Ke3 b2 72. f5+ Kxf5 73. Bc3 a1=Q 74. Kd4 Rd1+ 75. Kc5 Qa7+ 76. Kb5 b1=Q+ 77. Bb2 Qxb2+ 78. Kc4 Bd5#) 68. Ke3 Rb3+ (68... Qxh8 69. f5+ gxf5 70. Kf4 Qd4+ 71. Kf3 Rb2 72. Kg3 Qg4#) 69. Bc3 Qe1+ (69... a1=B 70. Kf2 Qh2+ 71. Kf1 Bxc3 72. f5+ Kd5 73. fxg6 Rb1#) 70. Kf3 Rxc3+ (70... a1=B 71. Kg4 Qe2+ 72. Kh4 Bxc3 73. f5+ Kxf5 74. Kh3 Bf6#) 71. Kg2 Qe2+ 72. Kh1 a1=Q#) 51. Bd6 {[%emt 0:00:15]} Rc3 {[%emt 0:00:00]} (51... Re3 $142 52. Bf8 Re4 (52... Kxf4 $2 53. Kf2 $19) 53. Bh6 Rxb4 54. Bg5 Ra4 55. Kf3 Rxa5 56. Ke3 Ra4 57. Kd2 b5 58. Bh6 Rd4+ 59. Kc3 Rc4+ 60. Kb2 h4 61. e6 h3 (61... Kxe6 {leads to mate.} 62. f5+ gxf5 63. Be3 h3 64. Bg1 f4 65. Bh2 f3 66. Bg1 h2 67. Bxh2 f2 68. Bf4 f1=Q 69. Bg5 Qe2+ 70. Ka1 Qd1+ 71. Bc1 Rc2 72. Kb1 Qxc1#) 62. e7 Rc8 63. Bg7 h2 (63... Kxf4 {is a self mate.} 64. Bf8 h2 65. e8=Q Rxe8 66. Bd6+ Re5 67. Bc7 Kf5 68. Bxe5 Kxe5 69. Kc2 Kd4 70. Kc1 h1=Q+ 71. Kc2 Qf3 72. Kb2 Qd1 73. Ka3 Qc2 74. Kb4 Qc3#) 64. Bc3 h1=Q 65. e8=B Rxe8 66. Be5 Rc8 67. Bc3 Qd1 (67... Kxf4 {gets mated.} 68. Bg7 Qc1+ 69. Kb3 Qc4+ 70. Kb2 Qb4+ 71. Ka2 Rc2+ 72. Ka1 Qe1#) 68. Bg7 Rc2+ (68... Kxf4 69. Bf6 Rc2+ 70. Ka3 Qe1 71. Bd4 Qa5+ 72. Kb3 Qa4#) 69. Ka3 Qb1 70. Bh8 Ra2#) 52. Kf2 {[%emt 0:00:19]} Rc4 {[%emt 0:00:00]} 53. Kg3 {[%emt 0:00:22]} Rxf4 {[%emt 0:00:00] Weighted Error Value: White=1.25/Black=0.65.  Loses game:     	White=2     	---        Missed win:     	---       	Black=1      Mistake:       	White=3     	Black=2      Inaccurate:     	White=5     	Black=2      OK:         	White=11    	Black=12     Best:        	White=1     	Black=1      Strong:       	---       	Black=1} 0-1